fUST/lending_fUST_20250519
["ID","MTS","AMOUNT","RATE_DAILY","PERIOD"]
[361561184,1747613455549,-159.9212359,0.00023753,2]
[361561186,1747613455559,-492.18947464,0.0002383,2]
[361561189,1747613455568,-171.29,0.00023835,2]
[361561191,1747613455577,-866.05,0.00023835,2]
[361561193,1747613455586,-475.11,0.00023835,2]
[361561195,1747613455595,-540.46,0.00023835,2]
[361561197,1747613455605,-4000.0,0.00023856,2]
[361561199,1747613455614,-4000.0,0.00023856,2]
[361561200,1747613455623,-4000.0,0.00023888,2]
[361561202,1747613455632,-4800.0,0.00023888,2]
[361561205,1747613455641,-2385.65723392,0.000239,2]
[361561207,1747613455651,-429.0,0.00023922,7]
[361561209,1747613455660,-4000.0,0.00024,4]
[361561211,1747613455669,-672.0,0.00024,2]
[361561213,1747613455678,-1679.69650204,0.00024,2]
[361561215,1747613455688,-19626.6987247,0.00024,4]
[361561217,1747613455698,-152000.0,0.00024,30]
[361561219,1747613455707,-20000.0,0.00024,2]
[361561221,1747613455716,-150.07294087,0.00024,2]
[361561222,1747613455725,-1000.0,0.00024,24]
[361561223,1747613455734,-2400.0,0.00024,120]
[361561224,1747613455743,-678.29504938,0.00024,7]
[361561225,1747613455753,-500.0,0.00024,10]
[361561226,1747613455763,-2000.0,0.00024,2]
[361561227,1747613455772,-2500.0,0.00024,2]
[361561228,1747613455781,-201.68830553,0.00024,2]
[361561229,1747613455791,-212.32903618,0.00024,30]
[361561230,1747613455800,-4777.67972287,0.00024,7]
[361561231,1747613455810,-160.0,0.00024,7]
[361561232,1747613455821,-160.0,0.00024,10]
[361561233,1747613455830,-160.0,0.00024,7]
[361561234,1747613455839,-314.4327999,0.00024,10]
[361561235,1747613455849,-314.4327999,0.00024,30]
[361561236,1747613455860,-160.0,0.00024,7]
[361561237,1747613455870,-160.0,0.00024,10]
[361561238,1747613455879,-212.32903618,0.00024,10]
[361561239,1747613455890,-212.32903618,0.00024,30]
[361561240,1747613455900,-422.53311782,0.00024,7]
[361561241,1747613455910,-422.53311782,0.00024,10]
[361561242,1747613455919,-12636.50182523,0.00024,10]
[361561243,1747613455929,-12636.50182523,0.00024,30]
[361561245,1747613455939,-160.0,0.00024,7]
[361561247,1747613455948,-10120.60110012,0.00024019,2]
[361561249,1747613455957,-9083.45731315,0.0002407,2]
[361561251,1747613455967,-171.29,0.00024109,2]
[361561253,1747613455976,-866.05,0.00024109,2]
[361561255,1747613455986,-475.11,0.00024109,2]
[361561257,1747613455995,-540.46,0.00024109,2]
[361561259,1747613456005,-450.0,0.00024109,2]
[361561261,1747613456015,-450.0,0.00024109,2]
[361561263,1747613456024,-450.0,0.00024109,2]
[361561265,1747613456033,-450.0,0.00024109,2]
[361561267,1747613456042,-450.0,0.00024109,2]
[361561269,1747613456052,-450.0,0.00024109,2]
[361561271,1747613456062,-450.0,0.00024109,2]
[361561273,1747613456075,-450.0,0.00024109,2]
[361561275,1747613456084,-450.0,0.00024109,2]
[361561277,1747613456094,-450.0,0.00024109,2]
[361561279,1747613456105,-450.0,0.00024109,2]
[361561281,1747613456115,-450.0,0.00024109,2]
[361561283,1747613456124,-200.0,0.00024147,120]
[361561285,1747613456133,-186.0,0.00024164,7]
[361561287,1747613456144,-200.0,0.00024168,120]
[361561289,1747613456154,-429.0,0.00024196,7]
[361561291,1747613456163,-18448.19,0.000242,5]
[361561293,1747613456174,-380.5,0.000242,5]
[361561296,1747613456183,-170.0,0.00024255,7]
[361561297,1747613456195,-429.0,0.00024255,7]
[361561299,1747613456204,-10120.60110012,0.00024299,2]
[361561301,1747613456214,-3137.94176789,0.00024324,4]
[361561303,1747613456223,-171.29,0.00024383,2]
[361561305,1747613456232,-866.05,0.00024383,2]
[361561319,1747613456338,-475.11,0.00024383,2]
[361561321,1747613456363,-540.46,0.00024383,2]
[361561323,1747613456372,-1969.29098281,0.00024404,2]
[361561325,1747613456382,-1810.34379897,0.00024404,2]
[361561327,1747613456392,-4500.0,0.00024436,2]
[361561329,1747613456401,-5400.0,0.00024436,2]
[361561331,1747613456411,-5000.0,0.000245,2]
[361561333,1747613456421,-500.0,0.000245,10]
[361561335,1747613456430,-400.0,0.00024524,8]
[361561337,1747613456439,-10120.60110012,0.00024579,2]
[361561339,1747613456449,-5221.33,0.000246,7]
[361561341,1747613456458,-72675.56944699,0.000246,2]
[361561343,1747613456468,-500.0,0.0002463,2]
[361561345,1747613456477,-500.0,0.0002463,2]
[361561347,1747613456487,-500.0,0.0002463,2]
[361561349,1747613456496,-500.0,0.0002463,2]
[361561351,1747613456506,-500.0,0.0002463,2]
[361561353,1747613456516,-500.0,0.0002463,2]
[361561355,1747613456526,-500.0,0.0002463,2]
[361561357,1747613456535,-500.0,0.0002463,2]
[361561359,1747613456544,-500.0,0.0002463,2]
[361561361,1747613456554,-500.0,0.0002463,2]
[361561363,1747613456564,-500.0,0.0002463,2]
[361561365,1747613456573,-500.0,0.0002463,2]
[361561367,1747613456582,-500.0,0.0002463,2]
[361561369,1747613456591,-189.47922494,0.0002463,2]
[361561371,1747613456601,-214.23991896,0.00024657,2]
[361561373,1747613456611,-171.29,0.00024657,2]
[361561375,1747613456620,-866.05,0.00024657,2]
[361561377,1747613456629,-200.0,0.00024657,2]
[361561379,1747613456639,-207.75048187,0.00024657,2]
[361561381,1747613456649,-475.11,0.00024657,2]
[361561383,1747613456659,-540.46,0.00024657,2]
[361561385,1747613456668,-1384.4,0.00024657,2]
[361561388,1747613456678,-876.11,0.00024658,30]
[361561390,1747613456687,-500.0,0.00024658,30]
[361561392,1747613456696,-1000.0,0.00024658,2]
[361561394,1747613456706,-982.1749309,0.00024658,3]
[361561396,1747613456715,-200.0,0.00024658,2]
[361561398,1747613456724,-380.0,0.00024658,2]
[361561400,1747613456733,-2795.2557506,0.00024658,2]
[361561402,1747613456743,-500.0,0.00024658,2]
[361561404,1747613456752,-490.88158555,0.00024658,2]
[361561406,1747613456764,-500.0,0.00024658,2]
[361561408,1747613456773,-500.0,0.00024658,2]
[361561410,1747613456783,-500.0,0.00024658,2]
[361561412,1747613456792,-500.0,0.00024658,2]
[361561414,1747613456802,-500.0,0.00024658,2]
[361561416,1747613456812,-500.0,0.00024658,2]
[361561418,1747613456822,-500.0,0.00024658,2]
[361561420,1747613456832,-500.0,0.00024658,2]
[361561422,1747613456842,-500.0,0.00024658,2]
[361561424,1747613456852,-500.0,0.00024658,2]
[361561425,1747613456862,-500.0,0.00024658,2]
[361561427,1747613456871,-500.0,0.00024658,2]
[361561429,1747613456881,-500.0,0.00024658,2]
[361561431,1747613456891,-500.0,0.00024658,2]
[361561433,1747613456905,-500.0,0.00024658,2]
[361561435,1747613456915,-500.0,0.00024658,2]
[361561437,1747613456924,-500.0,0.00024658,2]
[361561439,1747613456934,-500.0,0.00024658,2]
[361561441,1747613456943,-500.0,0.00024658,2]
[361561443,1747613456953,-500.0,0.00024658,2]
[361561445,1747613456963,-500.0,0.00024658,2]
[361561447,1747613456972,-500.0,0.00024658,2]
[361561449,1747613456981,-500.0,0.00024658,2]
[361561451,1747613456990,-500.0,0.00024658,2]
[361561453,1747613457002,-500.0,0.00024658,2]
[361561455,1747613457011,-500.0,0.00024658,2]
[361561457,1747613457020,-500.0,0.00024658,2]
[361561459,1747613457029,-500.0,0.00024658,2]
[361561461,1747613457039,-500.0,0.00024658,2]
[361561463,1747613457048,-500.0,0.00024658,2]
[361561465,1747613457057,-500.0,0.00024658,2]
[361561466,1747613457068,-500.0,0.00024658,2]
[361561468,1747613457078,-500.0,0.00024658,2]
[361561470,1747613457087,-500.0,0.00024658,2]
[361561472,1747613457097,-500.0,0.00024658,2]
[361561474,1747613457108,-500.0,0.00024658,2]
[361561476,1747613457117,-500.0,0.00024658,2]
[361561478,1747613457127,-500.0,0.00024658,2]
[361561480,1747613457138,-236.43583836,0.00024658,2]
[361561482,1747613457147,-500.0,0.00024658,2]
[361561484,1747613457157,-500.0,0.00024658,2]
[361561486,1747613457166,-16196.1,0.000247,2]
[361561488,1747613457175,-2512.74592713,0.000247,2]
[361561490,1747613457184,-207238.82,0.000247,2]
[361561492,1747613457194,-128176.17247203,0.000247,7]
[361561503,1747613457294,-3018.50532169,0.000247,7]
[361561505,1747613457306,-702.06664328,0.000247,7]
[361561507,1747613457317,-26609.9272957,0.000247,7]
[361561510,1747613457328,-5434.85633844,0.000247,7]
[361562275,1747614493281,-250.0,0.00012533,2]
[361562276,1747614493307,-250.0,0.00012788,2]
[361562277,1747614493331,-1668.4053141,0.00013385,2]
[361562278,1747614493357,-1200.0,0.00013619,2]
[361562279,1747614493382,-300.0,0.00013619,2]
[361562280,1747614493410,-300.0,0.00013619,2]
[361562281,1747614493438,-24900.0,0.0001362,2]
[361562282,1747614493465,-459.972009,0.00013699,2]
[361562283,1747614493490,-518.66038898,0.00014218,2]
[361562284,1747614493517,-1300.0,0.00014299,3]
[361562285,1747614493542,-639.7601499,0.00014317,2]
[361562286,1747614493567,-297.7388577,0.00014317,2]
[361562287,1747614493592,-500.0,0.00014317,2]
[361562288,1747614493619,-500.0,0.00014317,2]
[361562289,1747614493647,-500.0,0.00014317,2]
[361562290,1747614493674,-482.1899516,0.00014317,2]
[361562291,1747614493698,-376.52930003,0.00014317,2]
[361562292,1747614493726,-500.0,0.00014317,2]
[361562293,1747614493754,-500.0,0.00014317,2]
[361562294,1747614493779,-500.0,0.00014317,2]
[361562295,1747614493804,-500.0,0.00014317,2]
[361562296,1747614493831,-500.0,0.00014317,2]
[361562297,1747614493856,-500.0,0.00014317,2]
[361562298,1747614493883,-500.0,0.00014317,2]
[361562299,1747614493910,-474.41539936,0.00014317,2]
[361562300,1747614493939,-500.0,0.00014317,2]
[361562301,1747614493966,-500.0,0.00014317,2]
[361562302,1747614493994,-500.0,0.00014317,2]
[361562303,1747614494018,-500.0,0.00014317,2]
[361562304,1747614494044,-500.0,0.00014317,2]
[361562305,1747614494070,-500.0,0.00014317,2]
[361562306,1747614494095,-323.02240524,0.00014317,2]
[361562307,1747614494120,-500.0,0.00014317,2]
[361562308,1747614494147,-500.0,0.00014317,2]
[361562309,1747614494175,-500.0,0.00014317,2]
[361562310,1747614494205,-500.0,0.00014317,2]
[361562311,1747614494234,-500.0,0.00014317,2]
[361562312,1747614494260,-500.0,0.00014317,2]
[361562313,1747614494287,-500.0,0.00014317,2]
[361562314,1747614494314,-500.0,0.00014317,2]
[361562315,1747614494341,-500.0,0.00014317,2]
[361562316,1747614494369,-500.0,0.00014317,2]
[361562317,1747614494395,-500.0,0.00014317,2]
[361562318,1747614494424,-500.0,0.00014317,2]
[361562319,1747614494450,-500.0,0.00014317,2]
[361562320,1747614494477,-500.0,0.00014317,2]
[361562321,1747614494504,-500.0,0.00014317,2]
[361562322,1747614494533,-500.0,0.00014317,2]
[361562323,1747614494560,-500.0,0.00014317,2]
[361562324,1747614494587,-500.0,0.00014317,2]
[361562325,1747614494613,-500.0,0.00014317,2]
[361562326,1747614494639,-500.0,0.00014317,2]
[361562327,1747614494665,-500.0,0.00014317,2]
[361562328,1747614494825,-500.0,0.00014317,2]
[361562329,1747614494851,-500.0,0.00014317,2]
[361562330,1747614494877,-500.0,0.00014317,2]
[361562331,1747614494904,-500.0,0.00014317,2]
[361562332,1747614494930,-500.0,0.00014317,2]
[361562333,1747614494956,-500.0,0.00014317,2]
[361562334,1747614494986,-500.0,0.00014317,2]
[361562335,1747614495012,-500.0,0.00014317,2]
[361562336,1747614495038,-500.0,0.00014317,2]
[361562337,1747614495065,-500.0,0.00014317,2]
[361562338,1747614495092,-260.96244704,0.00014317,2]
[361562339,1747614495119,-500.0,0.00014317,2]
[361562340,1747614495145,-500.0,0.00014317,2]
[361562341,1747614495171,-500.0,0.00014317,2]
[361562342,1747614495198,-500.0,0.00014317,2]
[361562343,1747614495227,-500.0,0.00014317,2]
[361562344,1747614495253,-500.0,0.00014317,2]
[361562345,1747614495279,-500.0,0.00014317,2]
[361562346,1747614495305,-500.0,0.00014317,2]
[361562347,1747614495331,-500.0,0.00014317,2]
[361562348,1747614495357,-500.0,0.00014317,2]
[361562349,1747614495384,-500.0,0.00014317,2]
[361562350,1747614495411,-500.0,0.00014317,2]
[361562351,1747614495438,-500.0,0.00014317,2]
[361562352,1747614495467,-500.0,0.00014317,2]
[361562353,1747614495493,-500.0,0.00014317,2]
[361562354,1747614495521,-500.0,0.00014317,2]
[361562355,1747614495547,-500.0,0.00014317,2]
[361562356,1747614495573,-500.0,0.00014317,2]
[361562357,1747614495600,-500.0,0.00014317,2]
[361562358,1747614495624,-550.0,0.00014317,2]
[361562359,1747614495650,-500.0,0.00014317,2]
[361562360,1747614495675,-500.0,0.00014317,2]
[361562361,1747614495700,-500.0,0.00014317,2]
[361562362,1747614495728,-500.0,0.00014317,2]
[361562363,1747614495755,-500.0,0.00014317,2]
[361562364,1747614495781,-500.0,0.00014317,2]
[361562365,1747614495807,-500.0,0.00014317,2]
[361562366,1747614495833,-500.0,0.00014317,2]
[361562367,1747614495860,-500.0,0.00014317,2]
[361562368,1747614495886,-500.0,0.00014317,2]
[361562369,1747614495912,-500.0,0.00014317,2]
[361562370,1747614495938,-500.0,0.00014317,2]
[361562371,1747614495968,-500.0,0.00014317,2]
[361562372,1747614495994,-500.0,0.00014317,2]
[361562373,1747614496017,-3091.5916731,0.0001432,2]
[361562374,1747614496040,-160.0,0.00014411,2]
[361562375,1747614496064,-422.53311782,0.00014411,2]
[361562376,1747614496087,-160.0,0.00014411,2]
[361562377,1747614496110,-160.0,0.00014411,2]
[361562378,1747614496135,-212.32903618,0.00014411,2]
[361562379,1747614496158,-160.0,0.00014411,2]
[361562380,1747614496182,-500.0,0.00014414,2]
[361562381,1747614496205,-500.0,0.00014518,2]
[361562382,1747614496230,-152.0,0.0001466,2]
[361562383,1747614496255,-12636.50182523,0.00014831,2]
[361562384,1747614496283,-7934.83194281,0.000149,2]
[361562385,1747614496307,-500.0,0.00014944,2]
[361562386,1747614496331,-500.0,0.00014944,2]
[361562387,1747614496359,-500.0,0.00014944,2]
[361562388,1747614496383,-417.9875181,0.00014944,2]
[361562389,1747614496409,-500.0,0.00014944,2]
[361562390,1747614496435,-1000.0,0.00014962,2]
[361562391,1747614496462,-500.0,0.000152,2]
[361562392,1747614496488,-7934.83194259,0.00015279,2]
[361562393,1747614496513,-2000.0,0.00015299,3]
[361562394,1747614496537,-1500.0,0.0001551,2]
[361562395,1747614496564,-7934.83194259,0.00015659,2]
[361562396,1747614496589,-518.66038891,0.00015811,2]
[361562397,1747614496613,-160.0,0.00015999,2]
[361562398,1747614496654,500.0,0.00014944,2]
[361562399,1747614496714,500.0,0.00014944,2]
[361562400,1747614496769,500.0,0.00014944,2]
[361562401,1747614496813,500.0,0.00014944,2]
[361562402,1747614496903,500.0,0.00014944,2]
[361562404,1747614511025,-7934.83194259,0.00015878,2]
[361562405,1747614511052,-7934.83194259,0.00016038,2]
[361562406,1747614511077,-2000.0,0.00016058,2]
[361562407,1747614511106,-7934.83194259,0.00016417,2]
[361562408,1747614511254,-1000.0,0.00016606,2]
[361562409,1747614511282,-614.89770382,0.00016796,2]
[361562410,1747614511310,-614.89770382,0.00016796,2]
[361562411,1747614511336,-500.0,0.00016796,2]
[361562412,1747614511361,-500.0,0.00016796,2]
[361562413,1747614511388,-614.89770382,0.00016796,2]
[361562414,1747614511419,-614.89770382,0.00016796,2]
[361562415,1747614511444,-614.89770382,0.00016796,2]
[361562416,1747614511471,-428.085772,0.00016796,2]
[361562417,1747614511502,-614.89770382,0.00016796,2]
[361562418,1747614511531,-614.89770382,0.00016796,2]
[361562419,1747614511558,-614.89770382,0.00016796,2]
[361562420,1747614511585,-500.0,0.00016796,2]
[361562421,1747614511611,-614.89770382,0.00016796,2]
[361562422,1747614511636,-500.0,0.00016796,2]
[361562423,1747614511662,-614.89770382,0.00016796,2]
[361562424,1747614511687,-391.59694001,0.00016796,2]
[361562425,1747614511712,-614.89770382,0.00016796,2]
[361562426,1747614511739,-614.89770382,0.00016796,2]
[361562427,1747614511765,-614.89770382,0.00016796,2]
[361562428,1747614511793,-614.89770382,0.00016796,2]
[361562429,1747614511819,-614.89770382,0.00016796,2]
[361562430,1747614511845,-614.89770382,0.00016796,2]
[361562431,1747614511871,-614.89770382,0.00016796,2]
[361562432,1747614511895,-685.1717271,0.00016796,2]
[361562433,1747614511920,-685.1717271,0.00016796,2]
[361562434,1747614511946,-685.1717271,0.00016796,2]
[361562435,1747614511970,-685.1717271,0.00016796,2]
[361562436,1747614511996,-685.1717271,0.00016796,2]
[361562437,1747614512022,-685.1717271,0.00016796,2]
[361562438,1747614512047,-685.1717271,0.00016796,2]
[361562439,1747614512071,-50000.0,0.00016796,2]
[361562440,1747614512097,-7934.83194259,0.00016797,2]
[361562441,1747614512120,-546.0,0.00016812,2]
[361562442,1747614512144,-2235.0,0.00016812,2]
[361562443,1747614512169,-707.0,0.00016812,2]
[361562444,1747614512196,-404.0,0.00016812,2]
[361562445,1747614512222,-7934.83194259,0.00017176,2]
[361562446,1747614512247,-518.66038891,0.00017404,2]
[361562447,1747614512273,-7934.83194259,0.00017555,2]
[361562448,1747614512297,-7934.83194259,0.00017934,2]
[361562449,1747614512321,-2200.0,0.00018241,2]
[361562450,1747614512346,-7934.83194259,0.00018314,2]
[361562451,1747614512372,-7934.83194259,0.00018693,2]
[361562452,1747614512396,-518.66038891,0.00018997,2]
[361562453,1747614512426,-7934.83194259,0.00019072,2]
[361562454,1747614512449,-263.72447725,0.00019178,2]
[361562455,1747614512473,-450.0,0.00019178,2]
[361562456,1747614512498,-450.0,0.00019178,2]
[361562457,1747614512522,-450.0,0.00019178,2]
[361562458,1747614512547,-351.4977277,0.00019178,2]
[361562459,1747614512571,-335.964357,0.00019178,2]
[361562460,1747614512594,-1568.31,0.000193,2]
[361562461,1747614512620,-7934.83194259,0.00019452,2]
[361562462,1747614512644,-450.0,0.00019452,2]
[361562463,1747614512669,-1600.0,0.00019632,2]
[361562464,1747614512694,-450.0,0.00019726,2]
[361562465,1747614512717,-2235.0,0.00019812,2]
[361562466,1747614512741,-707.0,0.00019812,2]
[361562467,1747614512765,-404.0,0.00019812,2]
[361562468,1747614512791,-7934.83194259,0.00019831,2]
[361562469,1747614512815,-160.0,0.00019963,3]
[361562470,1747614512839,-157.85,0.0002,2]
[361562471,1747614512863,-300.0,0.0002,2]
[361562472,1747614512890,-450.0,0.0002,2]
[361562473,1747614513486,265.07302599,0.000189,2]
[361562474,1747614513692,41103.38980375,0.00019,20]
[361562475,1747614514876,50282.02735632,0.0002,20]
[361562476,1747614516162,122658.75026181,0.00019,2]
[361562477,1747614516784,26138.07353563,0.00019,7]
[361562480,1747614526416,-258.11360058,0.00016795,2]
[361562481,1747614526441,-2200.0,0.0001881,2]
[361562482,1747614526465,-2200.0,0.00019,2]
[361562483,1747614526491,-59816.02716607,0.00019,2]
[361562484,1747614526516,-649.6600404,0.00019999,2]
[361562485,1747614526542,-500.0,0.00019999,2]
[361562486,1747614526568,-500.0,0.00019999,2]
[361562487,1747614526593,-324.117858,0.00019999,2]
[361562488,1747614526619,-500.0,0.00019999,2]
[361562489,1747614526644,-500.0,0.00019999,2]
[361562490,1747614526669,-500.0,0.00019999,2]
[361562491,1747614526695,-500.0,0.00019999,2]
[361562492,1747614526719,-500.0,0.00019999,2]
[361562493,1747614526745,-500.0,0.00019999,2]
[361562494,1747614526770,-500.0,0.00019999,2]
[361562495,1747614526794,-500.0,0.00019999,2]
[361562496,1747614526819,-500.0,0.00019999,2]
[361562497,1747614526844,-500.0,0.00019999,2]
[361562498,1747614526869,-500.0,0.00019999,2]
[361562499,1747614526893,-500.0,0.00019999,2]
[361562500,1747614526920,-500.0,0.00019999,2]
[361562501,1747614526946,-500.0,0.00019999,2]
[361562502,1747614526969,-500.0,0.0002,2]
[361562503,1747614526991,-500.0,0.0002,2]
[361562504,1747614527014,-500.0,0.0002,2]
[361562505,1747614527037,-500.0,0.0002,2]
[361562506,1747614527060,-500.0,0.0002,2]
[361562507,1747614527083,-500.0,0.0002,2]
[361562508,1747614527106,-500.0,0.0002,2]
[361562509,1747614527130,-1000.0,0.0002,2]
[361562510,1747614527153,-500.0,0.0002,2]
[361562511,1747614527178,-500.0,0.0002,2]
[361562512,1747614527202,-1000.0,0.0002,2]
[361562513,1747614527226,-500.0,0.0002,2]
[361562514,1747614527251,-1000.0,0.0002,2]
[361562515,1747614527275,-500.0,0.0002,2]
[361562516,1747614527300,-500.0,0.0002,2]
[361562517,1747614527324,-500.0,0.0002,2]
[361562518,1747614527348,-1000.0,0.0002,2]
[361562519,1747614527372,-500.0,0.0002,2]
[361562520,1747614527395,-1000.0,0.0002,2]
[361562521,1747614527420,-500.0,0.0002,2]
[361562522,1747614527444,-1000.0,0.0002,2]
[361562523,1747614527470,-500.0,0.0002,2]
[361562524,1747614527495,-1000.0,0.0002,2]
[361562525,1747614527518,-500.0,0.0002,2]
[361562526,1747614527541,-1000.0,0.0002,2]
[361562527,1747614527564,-500.0,0.0002,2]
[361562528,1747614527588,-1000.0,0.0002,2]
[361562529,1747614527611,-500.0,0.0002,2]
[361562530,1747614527635,-1000.0,0.0002,2]
[361562531,1747614527659,-1000.0,0.0002,2]
[361562532,1747614527683,-1000.0,0.0002,2]
[361562533,1747614527708,-1000.0,0.0002,2]
[361562534,1747614527731,-1000.0,0.0002,2]
[361562535,1747614527762,-500.0,0.0002,2]
[361562536,1747614527788,-7934.83194259,0.0002021,2]
[361562537,1747614527818,-336.9069487,0.00020273,2]
[361562538,1747614527843,-459.972009,0.00020548,2]
[361562539,1747614527867,-500.0,0.00020575,2]
[361562540,1747614527893,-500.0,0.00020575,2]
[361562541,1747614528041,-500.0,0.00020575,2]
[361562542,1747614528068,-500.0,0.00020575,2]
[361562543,1747614528094,-500.0,0.00020575,2]
[361562544,1747614528120,-500.0,0.00020575,2]
[361562545,1747614528146,-500.0,0.00020575,2]
[361562546,1747614528173,-518.66038891,0.00020589,2]
[361562547,1747614528198,-212.32903618,0.0002059,3]
[361562548,1747614528224,-12636.50182523,0.0002059,3]
[361562549,1747614528252,-160.0,0.0002059,3]
[361562550,1747614528277,-998.55070715,0.0002059,3]
[361562551,1747614528307,-7934.83194259,0.0002059,3]
[361562552,1747614528332,-2000.0,0.000206,2]
[361562553,1747614528358,-11509.90453671,0.0002061,2]
[361562554,1747614528385,-500.0,0.00020667,2]
[361562555,1747614528411,-516.41639035,0.00020667,2]
[361562556,1747614528439,-500.0,0.000207,2]
[361562557,1747614528464,-500.0,0.000207,2]
[361562558,1747614528492,-500.0,0.000207,2]
[361562559,1747614528517,-289.47414984,0.000207,2]
[361562560,1747614528541,-500.0,0.000207,2]
[361562561,1747614528566,-500.403242,0.000207,2]
[361562562,1747614528591,-600.0,0.000207,2]
[361562563,1747614528615,-500.0,0.000207,2]
[361562564,1747614528639,-1875.35,0.0002071,20]
[361562565,1747614528663,-1600.0,0.00020728,2]
[361562566,1747614528687,-3303.97265687,0.0002088,2]
[361562567,1747614528715,-477.749,0.00020884,2]
[361562568,1747614528745,-7934.83194259,0.00020969,4]
[361562569,1747614528771,-10000.0,0.00021,5]
[361562570,1747614528796,-267.39924138,0.00021,2]
[361562571,1747614528821,-999.97898667,0.00021,10]
[361562572,1747614528847,-150398.51201992,0.00021,7]
[361562573,1747614531479,2200.0,0.00021,2]
[361562574,1747614532690,500.0,0.00019999,2]
[361562575,1747614532722,500.0,0.00016795,2]
[361562576,1747614532756,500.0,0.00019999,2]
[361562577,1747614532795,500.0,0.00016795,2]
[361562578,1747614532830,500.0,0.00019999,2]
[361562579,1747614532862,500.0,0.00016795,2]
[361562580,1747614532892,211.62765944,0.00019999,2]
[361562581,1747614532928,500.0,0.00016795,2]
[361562582,1747614532963,631.0962447,0.00016795,2]
[361562583,1747614533000,500.0,0.00016795,2]
[361562584,1747614533038,500.0,0.00016795,2]
[361562585,1747614533069,500.0,0.00019999,2]
[361562586,1747614533104,500.0,0.00016795,2]
[361562587,1747614533141,500.0,0.00019999,2]
[361562588,1747614533195,500.0,0.00019999,2]
[361562589,1747614533379,500.0,0.00019999,2]
[361562590,1747614533452,500.0,0.00019999,2]
[361562591,1747614533501,500.0,0.00019999,2]
[361562592,1747614533658,500.0,0.00019999,2]
[361562642,1747614632062,-422.53311782,0.00016027,2]
[361562644,1747614632071,-160.0,0.00016027,2]
[361562646,1747614632080,-160.0,0.00016027,2]
[361562648,1747614632089,-998.55070715,0.00016037,2]
[361562650,1747614632098,-160.0,0.00016037,2]
[361562652,1747614632108,-212.32903618,0.00016038,2]
[361562654,1747614632117,-3491.31146882,0.00016038,2]
[361562660,1747614632170,-9145.19035641,0.00016038,2]
[361562662,1747614632179,-2200.0,0.00019999,2]
[361562664,1747614632188,-212.32903618,0.0002059,3]
[361562666,1747614632197,-178.8130824,0.00020663,2]
[361562668,1747614632208,-500.0,0.000207,2]
[361562670,1747614632217,-5000.0,0.00021,2]
[361562673,1747614632226,-194.49764585,0.00021148,2]
[361562676,1747614632235,-7502.98856658,0.000212,30]
[361562678,1747614632244,-500.0,0.00021248,2]
[361562680,1747614632254,-535.71676038,0.00021248,2]
[361562682,1747614632263,-1000.0,0.00021248,2]
[361562684,1747614632273,-2000.0,0.000216,2]
[361562686,1747614632282,-1500.0,0.00021796,2]
[361562688,1747614632291,-1600.0,0.00021824,2]